fUSD/lending_fUSD_20240118
["ID","MTS","AMOUNT","RATE_DAILY","PERIOD"]
[312037972,1705567845736,-500.0,0.00022191,2]
[312037973,1705567845745,-500.0,0.00022191,2]
[312037974,1705567845754,-625.17,0.00022191,2]
[312037975,1705567845764,-500.0,0.00022191,2]
[312037976,1705567845774,-500.0,0.00022191,2]
[312037977,1705567845783,-500.0,0.00022191,2]
[312037978,1705567845793,-500.0,0.00022191,2]
[312037979,1705567845802,-2702.29,0.00022191,2]
[312037980,1705567845811,-1422.82,0.00022191,2]
[312037981,1705567845829,-569.81,0.00022191,2]
[312037982,1705567845840,-500.0,0.00022191,2]
[312037983,1705567845850,-500.0,0.00022191,2]
[312037984,1705567845859,-3897.63,0.00022191,2]
[312037985,1705567845869,-500.0,0.00022191,2]
[312037986,1705567845879,-564.2,0.00022191,2]
[312037988,1705567845888,-517.38,0.00022191,2]
[312037989,1705567845898,-1305.5,0.00022191,2]
[312037990,1705567845907,-500.0,0.00022191,2]
[312037991,1705567845917,-500.0,0.00022191,2]
[312037992,1705567845927,-500.0,0.00022191,2]
[312037993,1705567845937,-715.22,0.00022191,2]
[312037994,1705567845946,-500.0,0.00022191,2]
[312037995,1705567845956,-1697.47,0.00022191,2]
[312037996,1705567845965,-555.68,0.00022191,2]
[312037997,1705567845975,-995.02,0.00022191,2]
[312037998,1705567845985,-500.0,0.00022191,2]
[312038000,1705567845994,-1176.22,0.00022191,2]
[312038003,1705567846004,-500.0,0.00022191,2]
[312038005,1705567846013,-536.16,0.00022191,2]
[312038006,1705567846022,-500.0,0.00022191,2]
[312038008,1705567846031,-500.0,0.00022191,2]
[312038009,1705567846041,-543.51,0.00022191,2]
[312038010,1705567846051,-500.0,0.00022191,2]
[312038012,1705567846060,-640.73,0.00022191,2]
[312038014,1705567846070,-500.0,0.00022191,2]
[312038016,1705567846081,-1216.46,0.00022191,2]
[312038018,1705567846090,-644.14,0.00022191,2]
[312038020,1705567846099,-500.0,0.00022191,2]
[312038022,1705567846108,-725.46,0.00022191,2]
[312038025,1705567846118,-858.83,0.00022191,2]
[312038027,1705567846128,-500.0,0.00022191,2]
[312038029,1705567846137,-1070.85,0.00022191,2]
[312038031,1705567846146,-500.0,0.00022191,2]
[312038033,1705567846155,-554.02,0.00022191,2]
[312038034,1705567846165,-557.14,0.00022191,2]
[312038035,1705567846174,-500.0,0.00022191,2]
[312038036,1705567846184,-500.0,0.00022191,2]
[312038037,1705567846193,-7375.31,0.00022191,2]
[312038038,1705567846202,-500.0,0.00022191,2]
[312038039,1705567846211,-500.0,0.00022191,2]
[312038040,1705567846221,-3675.59,0.00022191,2]
[312038041,1705567846230,-507.37,0.00022191,2]
[312038042,1705567846240,-596.95,0.00022191,2]
[312038043,1705567846249,-500.0,0.00022191,2]
[312038044,1705567846258,-173.90109786,0.00022191,2]
[312038045,1705567846267,-500.0,0.00022191,2]
[312038046,1705567846276,-1017.86,0.00022191,2]
[312038047,1705567846285,-614.04,0.00022191,2]
[312038048,1705567846295,-176.46336912,0.00022191,2]
[312038049,1705567846304,-500.0,0.00022191,2]
[312038050,1705567846314,-500.0,0.00022191,2]
[312038051,1705567846325,-2031.02,0.00022191,2]
[312038052,1705567846334,-500.0,0.00022191,5]
[312038053,1705567846344,-500.0,0.00022191,2]
[312038054,1705567846354,-1380.7,0.00022191,2]
[312038055,1705567846363,-592.14,0.00022191,2]
[312038056,1705567846373,-853.84,0.00022191,2]
[312038057,1705567846382,-755.21,0.00022191,2]
[312038058,1705567846392,-500.0,0.00022191,2]
[312038059,1705567846402,-654.56,0.00022191,2]
[312038060,1705567846411,-687.24,0.00022191,2]
[312038061,1705567846420,-810.56,0.00022191,2]
[312038062,1705567846430,-691.03,0.00022191,2]
[312038063,1705567846439,-500.0,0.00022191,2]
[312038064,1705567846449,-500.0,0.00022191,2]
[312038065,1705567846458,-930.12,0.00022191,2]
[312038066,1705567846468,-225.31,0.00022191,2]
[312038067,1705567846477,-1078.05,0.00022191,2]
[312038068,1705567846490,-500.0,0.00022191,2]
[312038069,1705567846500,-500.0,0.00022191,2]
[312038070,1705567846510,-634.42,0.00022191,2]
[312038071,1705567846520,-500.0,0.00022191,2]
[312038072,1705567846529,-500.0,0.00022191,2]
[312038073,1705567846538,-194.25335596,0.00022191,2]
[312038074,1705567846548,-405.00622219,0.00022191,2]
[312038075,1705567846558,-913.23,0.00022191,2]
[312038076,1705567846567,-500.0,0.00022191,2]
[312038077,1705567846577,-500.0,0.00022191,2]
[312038078,1705567846587,-500.0,0.00022191,2]
[312038079,1705567846596,-500.0,0.00022191,2]
[312038080,1705567846606,-500.0,0.00022191,2]
[312038081,1705567846615,-1509.06,0.00022191,2]
[312038082,1705567846624,-500.0,0.00022191,2]
[312038083,1705567846634,-772.25,0.00022191,2]
[312038084,1705567846643,-500.0,0.00022191,2]
[312038085,1705567846653,-500.0,0.00022191,2]
[312038086,1705567846662,-500.0,0.00022191,2]
[312038087,1705567846671,-500.0,0.00022191,2]
[312038088,1705567846680,-1080.39,0.00022191,2]
[312038089,1705567846690,-846.77,0.00022191,2]
[312038090,1705567846702,-500.0,0.00022191,2]
[312038091,1705567846711,-914.38,0.00022191,2]
[312038092,1705567846720,-638.55,0.00022191,2]
[312038093,1705567846730,-500.0,0.00022191,2]
[312038094,1705567846739,-500.0,0.00022191,2]
[312038095,1705567846748,-500.0,0.00022191,2]
[312038096,1705567846757,-500.0,0.00022191,2]
[312038097,1705567846767,-1619.86,0.00022191,2]
[312038098,1705567846777,-718.76,0.00022191,5]
[312038099,1705567846786,-1741.77,0.00022191,2]
[312038100,1705567846796,-500.0,0.00022191,2]
[312038101,1705567846805,-835.9,0.00022191,2]
[312038102,1705567846815,-515.58340309,0.00022191,2]
[312038103,1705567846824,-500.0,0.00022191,2]
[312038104,1705567846834,-500.0,0.00022191,2]
[312038105,1705567846843,-500.0,0.00022191,2]
[312038106,1705567846852,-500.0,0.00022191,2]
[312038107,1705567846862,-500.0,0.00022191,2]
[312038108,1705567846871,-2024.63,0.00022191,2]
[312038109,1705567846881,-500.0,0.00022191,2]
[312038110,1705567846890,-2503.52,0.00022191,2]
[312038111,1705567846899,-500.0,0.00022191,2]
[312038112,1705567846909,-464.64,0.00022191,2]
[312038113,1705567846918,-515.1393545,0.00022191,2]
[312038114,1705567846927,-2999.0,0.000222,2]
[312038115,1705567846937,-161.23,0.0002223,2]
[312038116,1705567846946,-165.07,0.00022276,2]
[312038117,1705567846955,-675.48115555,0.00022281,2]
[312038118,1705567846965,-207.0,0.00022293,2]
[312038119,1705567846974,-1253.0,0.00022429,2]
[312038120,1705567846983,-1234.0,0.00022429,2]
[312038121,1705567846993,-1934.0,0.00022429,2]
[312038122,1705567847002,-508.0,0.00022429,2]
[312038123,1705567847011,-476.788,0.00022429,2]
[312038124,1705567847020,-319.0,0.00022429,2]
[312038125,1705567847030,-19308.6,0.00022429,2]
[312038126,1705567847039,-3067.673,0.00022429,2]
[312038127,1705567847048,-8092.0,0.00022429,2]
[312038128,1705567847058,-5575.0,0.00022429,2]
[312038129,1705567847067,-168.127,0.00022429,2]
[312038130,1705567847076,-7349.0,0.00022429,2]
[312038131,1705567847086,-1029.0,0.00022429,2]
[312038132,1705567847095,-150.589,0.00022429,2]
[312038133,1705567847104,-150.0,0.00022429,2]
[312038134,1705567847113,-200.0,0.00022429,2]
[312038135,1705567847122,-159.578,0.00022429,2]
[312038136,1705567847131,-150.985,0.00022429,2]
[312038137,1705567847140,-150.0,0.00022429,2]
[312038138,1705567847153,-675.48115555,0.00022435,2]
[312038139,1705567847162,-6129.46,0.00022445,2]
[312038140,1705567847171,-572.02645008,0.0002246,2]
[312038141,1705567847181,-169.58089598,0.00022461,2]
[312038142,1705567847190,-1129.45510728,0.00022461,2]
[312038143,1705567847199,-2035.74402954,0.00022461,2]
[312038144,1705567847209,-197.40422307,0.00022461,2]
[312038145,1705567847218,-212.24291872,0.00022461,2]
[312038146,1705567847227,-159.2957852,0.00022461,2]
[312038147,1705567847237,-532.70995754,0.00022461,2]
[312038148,1705567847246,-2312.78972333,0.00022461,2]
[312038149,1705567847255,-10548.52020323,0.00022461,2]
[312038150,1705567847265,-1708.02080546,0.00022461,2]
[312038151,1705567847274,-1015.0,0.00022462,2]
[312038152,1705567847283,-1367.36,0.00022462,2]
[312038153,1705567847292,-160.82,0.00022464,2]
[312038154,1705567847302,-500.0,0.00022465,2]
[312038155,1705567847311,-500.0,0.00022465,2]
[312038156,1705567847320,-156.97,0.00022465,2]
[312038157,1705567847331,-500.0,0.00022465,2]
[312038158,1705567847340,-500.0,0.00022465,2]
[312038159,1705567847349,-500.0,0.00022465,2]
[312038160,1705567847358,-500.0,0.00022465,2]
[312038161,1705567847368,-388.27017907,0.00022465,2]
[312038162,1705567847377,-202.93454746,0.00022465,2]
[312038163,1705567847386,-333.10708057,0.00022465,2]
[312038164,1705567847395,-500.0,0.00022465,2]
[312038165,1705567847404,-500.0,0.00022465,2]
[312038166,1705567847413,-500.0,0.00022465,2]
[312038167,1705567847422,-500.0,0.00022465,2]
[312038168,1705567847431,-597.09498877,0.00022465,2]
[312038169,1705567847440,-2573.5,0.00022465,2]
[312038170,1705567847450,-500.0,0.00022465,2]
[312038171,1705567847459,-424.48735615,0.00022465,2]
[312038172,1705567847469,-500.0,0.00022465,2]
[312038173,1705567847478,-536.63,0.00022465,2]
[312038174,1705567847486,-552.38,0.00022465,2]
[312038175,1705567847496,-500.0,0.00022465,2]
[312038176,1705567847505,-230.29,0.00022465,2]
[312038177,1705567847514,-500.0,0.00022465,2]
[312038178,1705567847524,-500.0,0.00022465,2]
[312038179,1705567847533,-264.83743652,0.00022465,2]
[312038180,1705567847543,-500.0,0.00022465,2]
[312038181,1705567847553,-606.87592251,0.00022465,2]
[312038182,1705567847562,-386.53,0.00022465,2]
[312038183,1705567847571,-500.0,0.00022465,2]
[312038184,1705567847581,-500.0,0.00022465,2]
[312038185,1705567847590,-273.36759124,0.00022465,2]
[312038186,1705567847600,-500.0,0.00022465,2]
[312038187,1705567847609,-545.06,0.00022465,2]
[312038188,1705567847618,-212.79966531,0.00022465,2]
[312038189,1705567847627,-500.0,0.00022465,2]
[312038190,1705567847636,-500.0,0.00022465,2]
[312038191,1705567847645,-500.0,0.00022465,2]
[312038192,1705567847655,-500.0,0.00022465,2]
[312038193,1705567847664,-231.40347122,0.00022465,2]
[312038194,1705567847673,-500.0,0.00022465,2]
[312038195,1705567847683,-499.06840117,0.00022465,2]
[312038196,1705567847693,-500.0,0.00022465,2]
[312038197,1705567847704,-647.11,0.00022465,2]
[312038198,1705567847713,-500.0,0.00022465,2]
[312038199,1705567847722,-500.0,0.00022465,2]
[312038200,1705567847732,-500.0,0.00022465,2]
[312038201,1705567847743,-538.65,0.00022465,2]
[312038202,1705567847752,-500.0,0.00022465,2]
[312038203,1705567847761,-388.46850892,0.00022465,2]
[312038204,1705567847771,-830.69,0.00022465,2]
[312038205,1705567847780,-500.0,0.00022465,2]
[312038206,1705567847789,-661.06,0.00022465,2]
[312038207,1705567847798,-500.0,0.00022465,2]
[312038208,1705567847808,-500.0,0.00022465,2]
[312038209,1705567847817,-500.0,0.00022465,2]
[312038210,1705567847827,-500.0,0.00022465,2]
[312038211,1705567847836,-500.0,0.00022465,2]
[312038212,1705567847845,-500.0,0.00022465,2]
[312038213,1705567847855,-500.0,0.00022465,2]
[312038214,1705567847865,-500.0,0.00022465,2]
[312038215,1705567847875,-500.0,0.00022465,2]
[312038216,1705567847884,-500.0,0.00022465,2]
[312038217,1705567847893,-500.0,0.00022465,2]
[312038218,1705567847902,-608.37,0.00022465,2]
[312038219,1705567847911,-278.31,0.00022465,2]
[312038220,1705567847921,-500.0,0.00022465,2]
[312038221,1705567847930,-403.05,0.00022465,2]
[312038222,1705567847939,-500.0,0.00022465,2]
[312038223,1705567847948,-500.0,0.00022465,2]
[312038224,1705567847957,-1936.38,0.00022465,2]
[312038225,1705567847967,-931.42,0.00022465,2]
[312038226,1705567847976,-500.0,0.00022465,2]
[312038227,1705567847985,-1339.97,0.00022465,2]
[312038228,1705567847994,-636.95,0.00022465,2]
[312038229,1705567848004,-3007.44,0.00022465,2]
[312038230,1705567848013,-500.0,0.00022465,2]
[312038231,1705567848022,-717.7,0.00022465,2]
[312038232,1705567848031,-1598.26,0.00022465,2]
[312038233,1705567848041,-2109.79,0.00022465,2]
[312038234,1705567848050,-500.0,0.00022465,2]
[312038235,1705567848059,-5418.62,0.00022465,2]
[312038236,1705567848069,-500.0,0.00022465,2]
[312038237,1705567848080,-1985.11,0.00022465,2]
[312038238,1705567848089,-654.13,0.00022465,2]
[312038239,1705567848099,-781.69,0.00022465,2]
[312038240,1705567848108,-500.0,0.00022465,2]
[312038241,1705567848117,-500.0,0.00022465,2]
[312038242,1705567848127,-500.0,0.00022465,2]
[312038243,1705567848136,-500.0,0.00022465,2]
[312038244,1705567848145,-500.0,0.00022465,2]
[312038245,1705567848154,-500.0,0.00022465,2]
[312038246,1705567848163,-1095.37,0.00022465,2]
[312038247,1705567848172,-1703.95,0.00022465,2]
[312038248,1705567848182,-500.0,0.00022465,2]
[312038249,1705567848191,-975.3,0.00022465,2]
[312038250,1705567848201,-711.0,0.00022465,2]
[312038251,1705567848210,-1238.22,0.00022465,2]
[312038252,1705567848219,-500.0,0.00022465,2]
[312038253,1705567848228,-500.0,0.00022465,2]
[312038254,1705567848237,-11407.95,0.00022465,2]
[312038255,1705567848246,-500.0,0.00022465,2]
[312038256,1705567848256,-533.91,0.00022465,2]
[312038257,1705567848265,-2438.38,0.00022465,2]
[312038258,1705567848274,-2492.22,0.00022465,2]
[312038259,1705567848283,-500.0,0.00022465,2]
[312038260,1705567848292,-500.0,0.00022465,2]
[312038261,1705567848302,-1219.56,0.00022465,2]
[312038262,1705567848312,-500.0,0.00022465,2]
[312038263,1705567848322,-500.0,0.00022465,2]
[312038264,1705567848334,-775.04,0.00022465,2]
[312038265,1705567848343,-500.0,0.00022465,2]
[312038266,1705567848353,-625.17,0.00022465,2]
[312038267,1705567848362,-500.0,0.00022465,2]
[312038268,1705567848371,-500.0,0.00022465,2]
[312038269,1705567848380,-500.0,0.00022465,2]
[312038270,1705567848391,-500.0,0.00022465,2]
[312038271,1705567848400,-2702.29,0.00022465,2]
[312038272,1705567848410,-1422.82,0.00022465,2]
[312038273,1705567848419,-569.81,0.00022465,2]
[312038274,1705567848428,-500.0,0.00022465,2]
[312038275,1705567848438,-500.0,0.00022465,2]
[312038276,1705567848447,-3897.63,0.00022465,2]
[312038277,1705567848457,-500.0,0.00022465,2]
[312038278,1705567848466,-564.2,0.00022465,2]
[312038279,1705567848475,-517.38,0.00022465,2]
[312038280,1705567848484,-1305.5,0.00022465,2]
[312038281,1705567848494,-715.22,0.00022465,2]
[312038282,1705567848504,-500.0,0.00022465,2]
[312038283,1705567848514,-500.0,0.00022465,2]
[312038284,1705567848523,-1697.47,0.00022465,2]
[312038285,1705567848533,-555.68,0.00022465,2]
[312038286,1705567848542,-995.02,0.00022465,2]
[312038287,1705567848552,-500.0,0.00022465,2]
[312038288,1705567848561,-1176.22,0.00022465,2]
[312038289,1705567848571,-500.0,0.00022465,2]
[312038290,1705567848581,-536.16,0.00022465,2]
[312038291,1705567848591,-500.0,0.00022465,2]
[312038292,1705567848600,-500.0,0.00022465,2]
[312038293,1705567848610,-543.51,0.00022465,2]
[312038294,1705567848620,-500.0,0.00022465,2]
[312038295,1705567848630,-640.73,0.00022465,2]
[312038296,1705567848639,-209.69026869,0.00022465,2]
[312038297,1705567848648,-1216.46,0.00022465,2]
[312038298,1705567848658,-644.14,0.00022465,2]
[312038299,1705567848667,-500.0,0.00022465,2]
[312038300,1705567848677,-725.46,0.00022465,2]
[312038301,1705567848687,-858.83,0.00022465,2]
[312038302,1705567848700,-500.0,0.00022465,2]
[312038303,1705567848709,-1070.85,0.00022465,2]
[312038304,1705567848719,-500.0,0.00022465,2]
[312038305,1705567848730,-554.02,0.00022465,2]
[312038306,1705567848740,-557.14,0.00022465,2]
[312038307,1705567848749,-500.0,0.00022465,2]
[312038308,1705567848759,-629.14575559,0.00022465,2]
[312038309,1705567848770,-7375.31,0.00022465,2]
[312038310,1705567848780,-500.0,0.00022465,2]
[312038311,1705567848789,-3675.59,0.00022465,2]
[312038312,1705567848799,-507.37,0.00022465,2]
[312038313,1705567848810,-596.95,0.00022465,2]
[312038314,1705567848820,-471.18644166,0.00022465,2]
[312038315,1705567848830,-500.0,0.00022465,2]
[312038316,1705567848840,-1017.86,0.00022465,2]
[312038317,1705567848850,-614.04,0.00022465,2]
[312038318,1705567848859,-500.0,0.00022465,2]
[312038319,1705567848869,-500.0,0.00022465,2]
[312038320,1705567848879,-2031.02,0.00022465,2]
[312038321,1705567848889,-500.0,0.00022465,5]
[312038322,1705567848899,-500.0,0.00022465,2]
[312038323,1705567848909,-1380.7,0.00022465,2]
[312038324,1705567848918,-853.84,0.00022465,2]
[312038325,1705567848930,-592.14,0.00022465,2]
[312038326,1705567848940,-755.21,0.00022465,2]
[312038327,1705567848949,-500.0,0.00022465,2]
[312038328,1705567848959,-654.56,0.00022465,2]
[312038329,1705567848969,-687.24,0.00022465,2]
[312038330,1705567848980,-810.56,0.00022465,2]
[312038331,1705567848989,-691.03,0.00022465,2]
[312038332,1705567848999,-340.5,0.00022465,2]
[312038333,1705567849009,-500.0,0.00022465,2]
[312038334,1705567849019,-930.12,0.00022465,2]
[312038335,1705567849029,-1078.05,0.00022465,2]
[312038336,1705567849039,-500.0,0.00022465,2]
[312038337,1705567849048,-500.0,0.00022465,2]
[312038338,1705567849057,-634.42,0.00022465,2]
[312038339,1705567849067,-500.0,0.00022465,2]
[312038340,1705567849077,-500.0,0.00022465,2]
[312038341,1705567849087,-913.23,0.00022465,2]
[312038342,1705567849097,-234.44045363,0.00022465,2]
[312038343,1705567849107,-500.0,0.00022465,2]
[312038344,1705567849117,-500.0,0.00022465,2]
[312038345,1705567849126,-500.0,0.00022465,2]
[312038346,1705567849135,-500.0,0.00022465,2]
[312038347,1705567849145,-1509.06,0.00022465,2]
[312038348,1705567849156,-500.0,0.00022465,2]
[312038349,1705567849165,-500.0,0.00022465,2]
[312038350,1705567849175,-772.25,0.00022465,2]
[312038351,1705567849220,-195.6,0.00022465,2]
[312038352,1705567849230,-500.0,0.00022465,2]
[312038353,1705567849240,-500.0,0.00022465,2]
[312038354,1705567849250,-1080.39,0.00022465,2]
[312038355,1705567849260,-846.77,0.00022465,2]
[312038356,1705567849269,-500.0,0.00022465,2]
[312038357,1705567849279,-914.38,0.00022465,2]
[312038358,1705567849289,-500.0,0.00022465,2]
[312038359,1705567849299,-500.0,0.00022465,2]
[312038360,1705567849308,-524.52,0.00022465,2]
[312038361,1705567849318,-500.0,0.00022465,2]
[312038362,1705567849330,-1619.86,0.00022465,2]
[312038363,1705567849339,-718.76,0.00022465,5]
[312038364,1705567849349,-835.9,0.00022465,2]
[312038365,1705567849358,-1741.77,0.00022465,2]
[312038366,1705567849368,-500.0,0.00022465,2]
[312038367,1705567849377,-500.0,0.00022465,2]
[312038368,1705567849387,-500.0,0.00022465,2]
[312038369,1705567849397,-500.0,0.00022465,2]
[312038370,1705567849406,-500.0,0.00022465,2]
[312038371,1705567849417,-500.0,0.00022465,2]
[312038372,1705567849427,-2024.63,0.00022465,2]
[312038373,1705567849437,-2503.52,0.00022465,2]
[312038374,1705567849446,-500.0,0.00022465,2]
[312038375,1705567849456,-200.0,0.00022474,2]
[312038376,1705567849466,-800.0,0.00022474,2]
[312038377,1705567849476,-12240.31559135,0.000225,2]
[312038378,1705567849485,-12298.83057596,0.000225,2]
[312038379,1705567849495,-401.25,0.000225,2]
[312038380,1705567849504,-675.48115555,0.0002259,2]
[312038381,1705567849514,-159.64015465,0.00022639,2]
[312038382,1705567849523,-195.00618662,0.00022639,4]
[312038383,1705567849534,-1234.25312865,0.00022639,2]
[312038384,1705567849543,-237.59237965,0.00022639,2]
[312038385,1705567849554,-995.033946,0.00022664,2]
[312038386,1705567849563,-402.26,0.00022687,2]
[312038387,1705567849573,-300.0,0.00022737,2]
[312038388,1705567849583,-355.71,0.00022739,2]
[312038389,1705567849593,-500.0,0.00022739,2]
[312038390,1705567849602,-512.42619069,0.00022739,2]
[312038391,1705567849612,-500.0,0.00022739,2]
[312038392,1705567849622,-500.0,0.00022739,2]
[312038393,1705567849632,-385.40648668,0.00022739,2]
[312038394,1705567849642,-362.69006393,0.00022739,2]
[312038395,1705567849651,-500.0,0.00022739,2]
[312038396,1705567849661,-310.49,0.00022739,2]
[312038397,1705567849671,-500.0,0.00022739,2]
[312038398,1705567849680,-2573.5,0.00022739,2]
[312038399,1705567849690,-291.83,0.00022739,2]
[312038400,1705567849704,-500.0,0.00022739,2]
[312038401,1705567849713,-536.63,0.00022739,2]
[312038402,1705567849723,-552.38,0.00022739,2]
[312038403,1705567849733,-500.0,0.00022739,2]
[312038404,1705567849742,-500.0,0.00022739,2]
[312038405,1705567849752,-307.9,0.00022739,2]
[312038406,1705567849761,-480.64374084,0.00022739,2]
[312038407,1705567849772,-500.0,0.00022739,2]
[312038408,1705567849781,-500.0,0.00022739,2]
[312038409,1705567849791,-500.0,0.00022739,2]
[312038410,1705567849801,-500.0,0.00022739,2]
[312038411,1705567849811,-500.0,0.00022739,2]
[312038412,1705567849820,-346.29,0.00022739,2]
[312038413,1705567849831,-500.0,0.00022739,2]
[312038414,1705567849840,-339.23,0.00022739,2]
[312038415,1705567849850,-500.0,0.00022739,2]
[312038416,1705567849860,-500.0,0.00022739,2]
[312038417,1705567849870,-500.0,0.00022739,2]
[312038418,1705567849881,-830.69,0.00022739,2]
[312038419,1705567849893,-500.0,0.00022739,2]
[312038420,1705567849903,-661.06,0.00022739,2]
[312038421,1705567849912,-500.0,0.00022739,2]
[312038422,1705567849922,-500.0,0.00022739,2]
[312038423,1705567849932,-500.0,0.00022739,2]
[312038424,1705567849942,-500.0,0.00022739,2]
[312038425,1705567849952,-500.0,0.00022739,2]
[312038426,1705567849961,-500.0,0.00022739,2]
[312038427,1705567849971,-500.0,0.00022739,2]
[312038428,1705567849982,-500.0,0.00022739,2]
[312038429,1705567849992,-500.0,0.00022739,2]
[312038430,1705567850003,-429.02830415,0.00022739,2]
[312038431,1705567850013,-500.0,0.00022739,2]
[312038432,1705567850024,-500.0,0.00022739,2]
[312038433,1705567850034,-500.0,0.00022739,2]
[312038434,1705567850044,-500.0,0.00022739,2]
[312038435,1705567850055,-1936.38,0.00022739,2]
[312038436,1705567850065,-931.42,0.00022739,2]
[312038437,1705567850076,-500.0,0.00022739,2]
[312038438,1705567850087,-1339.97,0.00022739,2]
[312038439,1705567850097,-636.95,0.00022739,2]
[312038440,1705567850108,-3007.44,0.00022739,2]
[312038441,1705567850118,-500.0,0.00022739,2]
[312038442,1705567850130,-717.7,0.00022739,2]
[312038443,1705567850140,-1598.26,0.00022739,2]
[312038444,1705567850150,-2109.79,0.00022739,2]
[312038445,1705567850161,-500.0,0.00022739,2]
[312038446,1705567850172,-5418.62,0.00022739,2]
[312038447,1705567850182,-500.0,0.00022739,2]
[312038448,1705567850192,-1985.11,0.00022739,2]
[312038449,1705567850202,-654.13,0.00022739,2]
[312038450,1705567850212,-781.69,0.00022739,2]
[312038451,1705567850222,-500.0,0.00022739,2]
[312038452,1705567850241,-500.0,0.00022739,2]
[312038453,1705567850251,-500.0,0.00022739,2]
[312038454,1705567850261,-500.0,0.00022739,2]
[312038455,1705567850272,-500.0,0.00022739,2]
[312038456,1705567850282,-500.0,0.00022739,2]
[312038457,1705567850291,-1095.37,0.00022739,2]
[312038458,1705567850302,-1703.95,0.00022739,2]
[312038459,1705567850312,-975.3,0.00022739,2]
[312038460,1705567850321,-500.0,0.00022739,2]
[312038461,1705567850333,-711.0,0.00022739,2]
[312038462,1705567850343,-1238.22,0.00022739,2]
[312038463,1705567850352,-500.0,0.00022739,2]
[312038464,1705567850362,-532.02215592,0.00022739,2]
[312038465,1705567850372,-11407.95,0.00022739,2]
[312038466,1705567850383,-500.0,0.00022739,2]
[312038467,1705567850393,-533.91,0.00022739,2]
[312038468,1705567850403,-2438.38,0.00022739,2]
[312038469,1705567850413,-500.0,0.00022739,2]
[312038470,1705567850423,-2492.22,0.00022739,2]
[312038471,1705567850432,-500.0,0.00022739,2]
[312038472,1705567850444,-1219.56,0.00022739,2]
[312038473,1705567850454,-603.11,0.00022739,2]
[312038474,1705567850464,-500.0,0.00022739,2]
[312038475,1705567850474,-775.04,0.00022739,2]
[312038476,1705567850484,-500.0,0.00022739,2]
[312038477,1705567850494,-625.17,0.00022739,2]
[312038478,1705567850503,-500.0,0.00022739,2]
[312038479,1705567850513,-500.0,0.00022739,2]
[312038480,1705567850524,-500.0,0.00022739,2]
[312038481,1705567850533,-500.0,0.00022739,2]
[312038482,1705567850543,-2702.29,0.00022739,2]
[312038483,1705567850554,-1422.82,0.00022739,2]
[312038484,1705567850563,-569.81,0.00022739,2]
[312038485,1705567850573,-500.0,0.00022739,2]
[312038486,1705567850586,-500.0,0.00022739,2]
[312038487,1705567850596,-3897.63,0.00022739,2]
[312038488,1705567850606,-500.0,0.00022739,2]
[312038489,1705567850616,-564.2,0.00022739,2]